bitfinex/quotes_SOLUSD_20241216
["timestamp","ask_amount","ask_price","bid_price","bid_amount"]
[1734391520958,8.01938652,216.46,216.4,0.08863889]
[1734391521755,8.01938652,216.47,216.4,0.08863889]
[1734391523378,20.0,216.51,216.4,0.08863889]
[1734391523596,8.01938652,216.46,216.4,0.08863889]
[1734391525476,8.01938652,216.47,216.4,0.08863889]
[1734391527061,20.0,216.52,216.4,0.08863889]
[1734391527279,8.01938652,216.48,216.4,0.08863889]
[1734391528183,6.95594175,216.55,216.4,0.08863889]
[1734391528503,8.01938652,216.5,216.4,0.08863889]
[1734391529087,8.0675,216.49,216.4,0.08863889]
[1734391529486,16.08688652,216.49,216.4,0.08863889]
[1734391530197,8.01938652,216.46,216.4,0.08863889]
[1734391530576,8.0675,216.49,216.4,0.08863889]
[1734391530577,8.01938652,216.45,216.4,0.08863889]
[1734391532006,8.01938652,216.41,216.4,0.08863889]
[1734391532294,6.4331,216.46,216.4,0.08863889]
[1734391532607,8.01938652,216.41,216.4,0.08863889]
[1734391533289,8.01938652,216.41,216.24,0.5462783]
[1734391533290,6.4331,216.4,216.24,0.5462783]
[1734391533488,8.01938652,216.31,216.24,0.5462783]
[1734391533695,20.0,216.37,216.24,0.5462783]
[1734391533867,8.01938652,216.31,216.24,0.5462783]
[1734391534465,8.01938652,216.3,216.24,0.5462783]
[1734391534662,8.01938652,216.29,216.24,0.5462783]
[1734391534872,8.01938652,216.3,216.2,88.5911783]
[1734391535277,20.0,216.37,216.2,88.5911783]
[1734391535483,8.01938652,216.3,216.2,88.5911783]
[1734391536293,8.01938652,216.32,216.2,88.5911783]
[1734391536598,8.01938652,216.33,216.21,0.12549]
[1734391536813,8.01938652,216.31,216.21,23.902374]
[1734391537095,20.0,216.37,216.21,23.902374]
[1734391537299,8.01938652,216.34,216.21,23.902374]
[1734391537679,20.0,216.37,216.21,23.902374]
[1734391537884,6.4331,216.4,216.25,0.12549]
[1734391538082,8.01938652,216.37,216.25,23.902374]
[1734391539477,6.4331,216.4,216.25,23.902374]
[1734391539668,14.45248652,216.4,216.25,23.902374]
[1734391539865,1.5764,216.41,216.25,23.902374]
[1734391540069,8.01938652,216.4,216.25,23.902374]
[1734391540496,8.01938652,216.4,216.28,0.12549]
[1734391541076,8.01938652,216.4,216.29,1.5595]
[1734391541490,8.01938652,216.4,216.3,23.776884]
[1734391541685,8.01938652,216.39,216.3,23.776884]
[1734391542715,1.5764,216.41,216.3,23.776884]
[1734391543001,8.01938652,216.39,216.3,23.776884]
[1734391543295,8.01938652,216.38,216.3,23.776884]
[1734391543506,8.01938652,216.39,216.3,23.776884]
[1734391543713,8.01938652,216.4,216.3,23.776884]
[1734391543889,9.59578652,216.41,216.3,23.776884]
[1734391544399,8.01938652,216.4,216.3,23.776884]
[1734391544576,8.01938652,216.39,216.3,23.776884]
[1734391544775,8.01938652,216.4,216.3,23.776884]
[1734391545381,8.01938652,216.39,216.3,23.776884]
[1734391547090,8.01938652,216.4,216.3,23.776884]
[1734391547490,8.01938652,216.37,216.3,23.776884]
[1734391548507,8.01938652,216.36,216.3,23.776884]
[1734391548803,8.01938652,216.37,216.29,23.776884]
[1734391549797,8.01938652,216.36,216.29,23.776884]
[1734391550615,8.01938652,216.34,216.24,21.5595]
[1734391550779,8.01938652,216.34,216.24,1.5595]
[1734391550981,8.01938652,216.35,216.24,1.5595]
[1734391552082,8.01938652,216.32,216.2,87.0462783]
[1734391552284,6.2162,216.36,216.23,20.0]
[1734391552494,8.01938652,216.35,216.23,20.0]
[1734391552712,14.23558652,216.36,216.23,20.0]
[1734391553607,14.23558652,216.36,216.24,23.776884]
[1734391554194,8.01938652,216.35,216.23,20.0]
[1734391554794,14.23558652,216.36,216.23,20.0]
[1734391555008,22.25497352,216.36,216.23,20.0]
[1734391555509,8.01938652,216.35,216.24,23.776884]
[1734391555705,22.25497352,216.36,216.24,23.776884]
[1734391556683,8.01938652,216.39,216.25,0.12549]
[1734391556888,28.01938652,216.38,216.25,0.12549]
[1734391557102,26.49302352,216.4,216.27,23.902374]
[1734391557308,8.01938652,216.4,216.27,23.902374]
[1734391557547,8.01938652,216.41,216.27,23.902374]
[1734391558020,26.49095052,216.42,216.27,23.902374]
[1734391558736,8.01938652,216.42,216.27,23.902374]
[1734391559613,8.01938652,216.41,216.27,23.776884]
[1734391560433,8.01938652,216.4,216.27,23.776884]
[1734391560607,8.01938652,216.38,216.27,23.776884]
[1734391560809,8.01938652,216.37,216.26,1.5595]
[1734391561530,8.01938652,216.36,216.22,0.12549]
[1734391561832,8.01938652,216.36,216.21,7.9304]
[1734391562507,8.01938652,216.36,216.22,23.776884]
[1734391564245,8.01938652,216.34,216.21,1.6131]
[1734391564536,8.01938652,216.33,216.21,1.6131]
[1734391564942,8.01938652,216.35,216.21,1.6131]
[1734391565238,8.01938652,216.36,216.22,0.12549]
[1734391565605,8.01938652,216.36,216.22,23.902374]
[1734391566624,15.82358652,216.37,216.22,23.902374]
[1734391567525,5.50668466,216.42,216.26,23.776884]
[1734391567526,7.15458466,216.42,216.26,23.776884]
[1734391567837,8.01938652,216.4,216.26,23.776884]
[1734391568828,8.01938652,216.39,216.26,23.776884]
[1734391569029,8.01938652,216.38,216.26,23.776884]
[1734391569228,8.01938652,216.37,216.26,23.776884]
[1734391570708,8.01938652,216.36,216.26,23.776884]
[1734391570909,8.01938652,216.35,216.26,23.776884]
[1734391571305,8.01938652,216.33,216.26,23.776884]
[1734391571526,8.01938652,216.32,216.21,1.6131]
[1734391571836,8.01938652,216.31,216.21,1.6131]
[1734391572039,8.01938652,216.32,216.21,1.6131]
[1734391573118,8.01938652,216.3,216.21,23.776884]
[1734391573417,8.01938652,216.29,216.2,87.0462783]
[1734391574020,12.68645225,216.29,216.2,87.0462783]
[1734391574639,12.68645225,216.22,216.2,87.0462783]
[1734391574811,1.5862,216.27,216.2,87.0462783]
[1734391574812,12.68645225,216.21,216.2,87.0462783]
[1734391575234,12.68645225,216.22,216.2,87.0462783]
[1734391575426,12.68645225,216.23,216.2,87.0462783]
[1734391576041,12.68645225,216.21,216.2,87.0462783]
[1734391576418,12.68645225,216.22,216.2,87.0462783]
[1734391576646,20.0,216.23,216.2,87.0462783]
[1734391577720,12.68645225,216.24,216.2,87.0462783]
[1734391578751,35.45700583,216.25,216.2,87.0462783]
[1734391579047,15.45700583,216.25,216.2,87.0462783]
[1734391579418,12.68645225,216.25,216.2,87.0462783]
[1734391580657,20.0,216.25,216.2,87.0462783]
[1734391581174,15.4965147,216.26,216.2,87.0462783]
[1734391581315,20.0,216.25,216.2,87.0462783]
[1734391581514,12.68645225,216.24,216.2,87.0462783]
[1734391581841,32.68645225,216.25,216.2,87.0462783]
[1734391582037,12.68645225,216.24,216.2,87.0462783]
[1734391582249,32.68645225,216.25,216.2,87.0462783]
[1734391582740,15.4965147,216.26,216.2,87.0462783]
[1734391582940,20.0,216.25,216.2,87.0462783]
[1734391583144,20.0,216.24,216.2,87.0462783]
[1734391584545,17.05250104,216.27,216.2,87.0462783]
[1734391585123,12.68645225,216.25,216.2,87.0462783]
[1734391585545,12.68645225,216.26,216.2,87.0462783]
[1734391586948,12.68645225,216.25,216.2,87.0462783]
[1734391587538,20.0,216.23,216.2,87.0462783]
[1734391588151,32.68645225,216.25,216.2,87.0462783]
[1734391588536,20.0,216.25,216.2,87.0462783]
[1734391588752,20.0,216.23,216.2,87.0462783]
[1734391589471,12.68645225,216.24,216.2,87.0462783]
[1734391594069,8.12326699,216.24,216.2,87.0462783]
[1734391594275,8.24875699,216.21,216.2,59.33093635]
[1734391597149,8.24875699,216.21,216.2,31.61175163]
[1734391597942,20.0,216.21,216.2,31.61175163]
[1734391598457,28.12326699,216.21,216.2,31.61175163]
[1734391598632,28.24875699,216.21,216.2,31.61175163]
[1734391599833,0.12549,216.14,216.07,88.0]
[1734391600251,106.68824837,216.15,216.07,88.0]
[1734391600562,0.12549,216.15,216.07,88.0]
[1734391601569,8.24875699,216.15,216.07,88.0]
[1734391601770,8.12326699,216.12,216.07,88.0]
[1734391602096,0.12549,216.11,216.07,88.0]
[1734391602265,8.12326699,216.16,216.07,88.0]
[1734391602667,6.5253,216.19,216.07,88.0]
[1734391602866,8.12326699,216.19,216.07,88.0]
[1734391603295,8.12326699,216.18,216.07,88.0]
[1734391603813,0.12549,216.17,216.07,88.0]
[1734391604667,18.491428,216.2,216.08,23.776884]
[1734391604992,6.5253,216.25,216.1,23.776884]
[1734391605175,8.12326699,216.23,216.1,23.776884]
[1734391605725,18.485584,216.27,216.14,23.776884]
[1734391605982,8.12326699,216.25,216.14,23.776884]
[1734391606387,8.24875699,216.26,216.14,23.776884]
[1734391606776,8.12326699,216.25,216.14,23.776884]
[1734391606972,8.12326699,216.26,216.14,23.776884]
[1734391607572,0.12549,216.26,216.14,23.776884]
[1734391607774,8.24875699,216.26,216.14,23.776884]
[1734391608180,8.12326699,216.25,216.14,23.776884]
[1734391608376,8.12326699,216.26,216.14,23.776884]
[1734391608892,8.24875699,216.27,216.14,23.776884]
[1734391609096,8.12326699,216.26,216.14,23.776884]
[1734391609675,8.12326699,216.25,216.14,23.776884]
[1734391610088,8.12326699,216.26,216.14,23.776884]
[1734391612319,8.12326699,216.25,216.14,23.776884]
[1734391613991,28.12326699,216.26,216.14,23.776884]
[1734391616180,21.5713,216.31,216.16,23.776884]
[1734391616413,8.12326699,216.27,216.16,23.776884]
[1734391617079,8.12326699,216.26,216.16,23.776884]
[1734391618681,8.12326699,216.27,216.16,23.776884]
[1734391619503,8.12326699,216.26,216.16,23.776884]
[1734391619999,2.93626746,216.3,216.16,23.776884]
[1734391620000,8.12326699,216.25,216.16,23.776884]
[1734391620200,8.12326699,216.26,216.16,23.776884]
[1734391620405,8.12326699,216.25,216.16,23.776884]
[1734391620583,0.12549,216.27,216.16,23.776884]
[1734391620779,8.12326699,216.24,216.16,23.776884]
[1734391621379,8.12326699,216.25,216.16,23.776884]
[1734391621602,8.12326699,216.25,216.07,116.1]
[1734391621603,0.12549,216.16,216.07,88.0]
[1734391622339,8.12326699,216.19,216.07,88.0]
[1734391622825,8.12326699,216.22,216.09,1.6116]
[1734391623101,6.477,216.24,216.1,23.776884]
[1734391623310,8.12326699,216.23,216.1,23.776884]
[1734391623609,28.12326699,216.24,216.1,23.776884]
[1734391623911,8.12326699,216.25,216.1,23.776884]
[1734391625124,8.12326699,216.24,216.1,23.776884]
[1734391627718,0.12549,216.25,216.1,23.776884]
[1734391628093,8.12326699,216.24,216.1,23.776884]
[1734391628287,8.12326699,216.22,216.1,23.776884]
[1734391630601,8.12326699,216.22,216.09,1.6116]
[1734391632746,8.12326699,216.2,216.09,1.6116]
[1734391635621,8.12326699,216.18,216.09,1.6116]
[1734391635870,8.12326699,216.18,216.07,88.0]
[1734391635871,8.12326699,216.16,216.07,88.0]
[1734391637428,0.12549,216.15,216.07,88.0]
[1734391638861,0.12549,216.14,216.07,88.0]
[1734391639005,21.5434,216.17,216.07,88.0]
[1734391639327,29.66666699,216.17,216.07,88.0]
[1734391639724,21.5434,216.17,216.07,88.0]
[1734391640249,29.66666699,216.17,216.07,88.0]
[1734391641240,8.12326699,216.16,216.07,88.0]
[1734391641830,29.66666699,216.17,216.07,88.0]
[1734391642127,8.24875699,216.16,216.07,88.0]
[1734391642640,8.12326699,216.14,216.07,88.0]
[1734391643155,8.12326699,216.15,216.07,88.0]
[1734391643955,8.12326699,216.16,216.07,88.0]
[1734391644733,1.5434,216.17,216.07,88.0]
[1734391644936,8.12326699,216.18,216.07,88.0]
[1734391646237,8.12326699,216.17,216.07,88.0]
[1734391650630,21.5434,216.22,216.08,29.983384]
[1734391650930,8.12326699,216.19,216.08,29.983384]
[1734391651128,8.12326699,216.15,216.07,88.0]
[1734391651318,8.12326699,216.14,216.07,88.0]
[1734391652037,0.12549,216.19,216.07,88.0]
[1734391652232,8.12326699,216.16,216.07,88.0]
[1734391652418,0.12549,216.19,216.07,88.0]
[1734391652629,8.12326699,216.16,216.07,88.0]
[1734391652826,8.12326699,216.15,216.07,88.0]
[1734391653246,8.12326699,216.16,216.07,88.0]
[1734391653450,8.12326699,216.17,216.07,88.0]
[1734391653652,8.12326699,216.16,216.07,88.0]
[1734391654527,0.12549,216.19,216.07,88.0]
[1734391654740,8.12326699,216.17,216.07,88.0]
[1734391655533,8.12326699,216.16,216.07,88.0]
[1734391656755,8.12326699,216.17,216.07,88.0]
[1734391657756,8.12326699,216.16,216.07,88.0]
[1734391657944,8.12326699,216.17,216.07,88.0]
[1734391658841,8.12326699,216.17,216.07,94.2065]
[1734391659844,8.12326699,216.18,216.07,94.2065]
[1734391661340,8.12326699,216.17,216.07,94.2065]
[1734391661544,8.12326699,216.16,216.07,94.2065]
[1734391663050,8.12326699,216.15,216.07,94.2065]
[1734391663463,8.12326699,216.14,216.07,88.0]
[1734391664122,0.12549,216.19,216.07,88.0]
[1734391664123,8.12326699,216.13,216.07,88.0]
[1734391665421,8.12326699,216.14,216.07,88.0]
[1734391667267,8.12326699,216.13,216.07,88.0]
[1734391669050,8.12326699,216.14,216.07,88.0]
[1734391670583,20.0,216.17,216.07,88.0]
[1734391670729,28.12326699,216.17,216.07,88.0]
[1734391671046,8.12326699,216.17,216.07,88.0]
[1734391672455,0.12549,216.19,216.07,88.0]
[1734391672456,8.12326699,216.15,216.07,88.0]
[1734391673263,8.12326699,216.16,216.07,88.0]
[1734391678850,8.12326699,216.18,216.07,88.0]
[1734391679257,8.12326699,216.19,216.07,88.0]
[1734391679440,23.88673774,216.2,216.08,23.776884]
[1734391679639,16.93079599,216.2,216.09,7.7207]
[1734391679838,8.12326699,216.19,216.09,7.7207]
[1734391680241,16.93079599,216.2,216.09,7.7207]
[1734391680442,15.07920874,216.21,216.09,7.7207]
[1734391681037,6.95594175,216.21,216.1,23.776884]
[1734391681253,15.07920874,216.22,216.1,23.776884]
[1734391681447,8.12326699,216.21,216.1,23.776884]
[1734391681640,8.12326699,216.19,216.1,23.776884]
[1734391681841,8.12326699,216.2,216.1,23.776884]
[1734391683161,8.12326699,216.21,216.1,23.776884]
[1734391684744,8.12326699,216.22,216.1,23.776884]
[1734391684943,6.95594175,216.23,216.1,23.776884]
[1734391685140,8.12326699,216.22,216.1,23.776884]
[1734391685865,6.95594175,216.23,216.1,23.776884]
[1734391686073,6.95594175,216.24,216.14,23.776884]
[1734391686251,8.12326699,216.24,216.14,23.776884]
[1734391686859,15.07920874,216.27,216.14,23.776884]
[1734391687053,8.12326699,216.26,216.14,23.776884]
[1734391687257,8.12326699,216.26,216.16,23.776884]
[1734391687460,15.07920874,216.27,216.16,23.776884]
[1734391687662,15.07920874,216.28,216.18,23.776884]
[1734391687867,6.95594175,216.28,216.18,23.776884]
[1734391688255,8.12326699,216.29,216.18,23.776884]
[1734391688455,6.95594175,216.3,216.18,23.776884]
[1734391688844,6.95594175,216.31,216.18,23.776884]
[1734391689472,8.12326699,216.31,216.18,23.776884]
[1734391689678,18.477724,216.32,216.18,23.776884]
[1734391689853,8.12326699,216.31,216.18,23.776884]
[1734391690657,8.12326699,216.31,216.18,25.62605717]
[1734391691171,8.12326699,216.33,216.21,20.0]
[1734391691361,8.12326699,216.33,216.22,23.776884]
[1734391691563,8.12326699,216.32,216.22,23.776884]
[1734391692478,8.12326699,216.33,216.22,23.776884]
[1734391692675,8.12326699,216.32,216.22,23.776884]
[1734391693174,8.12326699,216.33,216.22,23.776884]
[1734391693555,18.476612,216.34,216.22,23.776884]
[1734391693899,8.12326699,216.32,216.22,23.776884]
[1734391694456,8.12326699,216.33,216.22,23.776884]
[1734391696053,26.59987899,216.34,216.22,23.776884]
[1734391696685,8.12326699,216.33,216.22,23.776884]
[1734391697463,6.95594175,216.41,216.27,23.776884]
[1734391697672,14.59196699,216.4,216.27,23.776884]
[1734391697986,8.12326699,216.39,216.27,23.776884]
[1734391698483,18.471919,216.41,216.27,23.776884]
[1734391698661,8.12326699,216.43,216.31,23.776884]
[1734391698858,8.12326699,216.42,216.31,23.776884]
[1734391699073,8.12326699,216.41,216.29,20.0]
[1734391699275,8.12326699,216.41,216.3,23.776884]
[1734391699587,8.12326699,216.39,216.29,20.0]
[1734391700363,0.12549,216.42,216.29,20.0]
[1734391700570,18.469477,216.43,216.29,20.0]
[1734391700762,8.12326699,216.42,216.29,20.0]
[1734391701778,18.469477,216.43,216.3,23.776884]
[1734391702085,8.12326699,216.43,216.3,23.776884]
[1734391702290,8.12326699,216.42,216.3,23.776884]
[1734391705583,26.59265599,216.44,216.3,23.776884]
[1734391705965,8.12326699,216.43,216.3,23.776884]
[1734391706978,18.469389,216.44,216.3,23.776884]
[1734391707179,8.12326699,216.43,216.3,23.776884]
[1734391707383,18.469389,216.44,216.3,23.776884]
[1734391707586,8.12326699,216.43,216.3,23.776884]
[1734391708703,8.12326699,216.44,216.3,23.776884]
[1734391711199,26.59169899,216.45,216.3,23.776884]
[1734391711399,8.12326699,216.44,216.3,23.776884]
[1734391712075,18.468432,216.45,216.3,23.776884]
[1734391712277,26.59169899,216.45,216.3,23.776884]
[1734391712688,26.59169899,216.45,216.3,25.65492852]
[1734391714279,8.12326699,216.43,216.3,23.776884]
[1734391714498,8.12326699,216.42,216.3,23.776884]
[1734391715707,18.468432,216.45,216.3,23.776884]
[1734391715887,8.12326699,216.43,216.3,23.776884]
[1734391717112,8.12326699,216.43,216.33,20.0]
[1734391717710,8.12326699,216.4,216.3,23.776884]
[1734391718006,8.12326699,216.38,216.26,8.1943]
[1734391719203,8.12326699,216.39,216.27,23.776884]
[1734391719505,0.12549,216.44,216.27,23.776884]
[1734391719712,8.12326699,216.39,216.27,23.776884]
[1734391720609,0.12549,216.44,216.27,23.776884]
[1734391720908,8.12326699,216.39,216.27,23.776884]
[1734391723432,8.12326699,216.38,216.26,8.1943]
[1734391723588,8.12326699,216.37,216.26,8.1943]
[1734391725092,8.12326699,216.35,216.26,1.5881]
[1734391725405,8.12326699,216.35,216.23,23.776884]
[1734391728017,8.12326699,216.36,216.23,23.776884]
[1734391731531,0.12549,216.36,216.23,23.776884]
[1734391731701,8.12326699,216.34,216.22,23.776884]
[1734391734104,8.12326699,216.34,216.22,23.726856]
[1734391734335,8.12326699,216.34,216.21,8.2068]
[1734391734619,0.12549,216.37,216.21,8.2068]
[1734391734620,8.12326699,216.33,216.21,8.2068]
[1734391735939,16.24653399,216.33,216.21,8.2068]
[1734391736241,8.123267,216.33,216.21,8.2068]
[1734391736437,8.123267,216.33,216.22,23.776884]
[1734391737759,8.12326699,216.32,216.21,8.2068]
[1734391737950,8.12326699,216.3,216.17,5.14461444]
[1734391738737,9.74096699,216.31,216.17,5.14461444]
[1734391739156,1.6177,216.31,216.17,5.14461444]
[1734391739355,1.6177,216.31,216.18,23.776884]
[1734391740457,9.74096699,216.31,216.18,23.776884]
[1734391740767,8.12326699,216.25,216.15,1.6359]
[1734391742552,8.12326699,216.24,216.11,6.2464]
[1734391742861,0.12549,216.26,216.11,6.2464]
[1734391743055,8.12326699,216.24,216.11,6.2464]
[1734391743558,8.12326699,216.23,216.11,6.2464]
[1734391743748,1.6276,216.23,216.09,1.6648]
[1734391744438,1.6276,216.23,216.1,23.776884]
[1734391744636,9.75086699,216.23,216.1,23.776884]
[1734391745234,1.6276,216.23,216.1,23.776884]
[1734391745462,9.75086699,216.23,216.1,23.776884]
[1734391746231,8.12326699,216.22,216.09,1.6648]
[1734391746431,8.12326699,216.21,216.09,1.6648]
[1734391748349,8.24875699,216.22,216.09,1.6648]
[1734391748551,8.12326699,216.21,216.09,1.6648]
[1734391752066,8.12326699,216.2,216.07,93.14461444]
[1734391752270,8.12326699,216.2,216.07,88.0]
[1734391752470,14.22716699,216.21,216.07,88.0]
[1734391753473,6.1039,216.21,216.07,88.0]
[1734391753739,14.22716699,216.21,216.07,88.0]
[1734391754066,14.17180888,216.21,216.07,88.0]
[1734391756267,13.67180888,216.21,216.07,88.0]
[1734391756565,5.54854189,216.21,216.08,23.776884]
[1734391757360,13.67180888,216.21,216.08,23.776884]
[1734391758653,5.54854189,216.21,216.08,23.776884]
[1734391758855,13.67180888,216.21,216.08,23.776884]
[1734391760459,8.12326699,216.21,216.08,23.776884]
[1734391761268,8.24875699,216.22,216.08,23.776884]
[1734391761478,1.6276,216.23,216.11,20.0]
[1734391762057,9.75086699,216.23,216.11,20.0]
[1734391764068,1.6276,216.23,216.11,20.0]
[1734391764576,9.75086699,216.23,216.11,20.0]
[1734391765155,1.6276,216.23,216.11,20.0]
[1734391765357,8.12326699,216.18,216.07,88.0]
[1734391765559,8.12326699,216.17,216.07,88.0]
[1734391767379,0.12549,216.22,216.07,88.0]
[1734391767553,8.12326699,216.18,216.07,88.0]
[1734391769778,8.12326699,216.17,216.07,88.0]
[1734391769984,8.12326699,216.18,216.07,88.0]
[1734391771952,8.12326699,216.17,216.07,88.0]
[1734391772381,0.12549,216.18,216.07,88.0]
[1734391773886,8.12326699,216.18,216.07,88.0]
[1734391776581,8.12326699,216.17,216.07,88.0]
[1734391777460,8.12326699,216.18,216.07,88.0]
[1734391777860,0.12549,216.22,216.07,88.0]
[1734391778093,8.12326699,216.18,216.07,88.0]
[1734391779390,10.90527289,216.18,216.07,88.0]
[1734391782276,2.7820059,216.18,216.07,88.0]
[1734391782481,10.90527289,216.18,216.07,88.0]
[1734391783499,2.7820059,216.18,216.07,88.0]
[1734391785898,0.12549,216.18,216.07,88.0]
[1734391788098,8.12326699,216.18,216.07,88.0]
[1734391788779,6.95594175,216.22,216.07,88.0]
[1734391788780,8.12326699,216.17,216.07,88.0]
[1734391790379,8.12326699,216.18,216.07,88.0]
[1734391791090,8.12326699,216.19,216.07,88.0]
[1734391793809,8.12326699,216.17,216.07,88.0]
[1734391794104,28.12326699,216.18,216.07,88.0]
[1734391794404,20.0,216.18,216.07,88.0]
[1734391795180,8.12326699,216.19,216.07,88.0]
[1734391795578,8.12326699,216.18,216.07,88.0]
[1734391796187,8.12326699,216.13,216.07,88.0]
[1734391796388,7.08143175,216.18,216.07,88.0]
[1734391796594,6.95594175,216.18,216.07,88.0]
[1734391796985,17.90891388,216.2,216.07,88.0]
[1734391797298,9.78564689,216.2,216.07,88.0]
[1734391797607,17.90891388,216.2,216.07,88.0]
[1734391797792,8.12326699,216.19,216.07,88.0]
[1734391797988,6.95594175,216.21,216.08,23.776884]
[1734391798299,8.12326699,216.21,216.09,6.4423]
[1734391798604,6.95594175,216.22,216.09,6.4423]
[1734391798605,8.12326699,216.22,216.09,6.4423]
[1734391798808,6.95594175,216.23,216.09,6.4423]
[1734391799008,8.12326699,216.22,216.09,6.4423]
[1734391799804,8.12326699,216.21,216.09,6.4423]
[1734391800309,8.12326699,216.22,216.09,6.4423]
[1734391800526,6.95594175,216.25,216.1,23.776884]
[1734391800684,8.12326699,216.24,216.1,24.47071257]
[1734391800887,15.07920874,216.25,216.12,23.776884]
[1734391801206,8.12326699,216.24,216.12,23.776884]
[1734391801591,8.12326699,216.23,216.12,23.776884]
[1734391801794,8.12326699,216.21,216.11,1.5908]
[1734391803181,6.95594175,216.24,216.12,43.776884]
[1734391803403,6.95594175,216.26,216.14,23.776884]
[1734391803583,6.95594175,216.26,216.17,26.4613]
[1734391803792,6.95594175,216.27,216.17,26.4613]
[1734391803990,6.95594175,216.29,216.18,1.5908]
[1734391804225,6.95594175,216.3,216.18,1.5908]
[1734391804399,8.12326699,216.3,216.18,1.5908]
[1734391805407,8.12326699,216.29,216.18,1.5908]
[1734391805611,8.12326699,216.28,216.18,1.5908]
[1734391806004,8.12326699,216.29,216.18,1.5908]
[1734391807583,8.12326699,216.28,216.18,1.5908]
[1734391807790,8.12326699,216.26,216.18,1.5908]
[1734391808005,8.12326699,216.26,216.13,23.776884]
[1734391809895,8.12326699,216.23,216.12,6.0994]
[1734391810895,0.12549,216.26,216.12,6.0994]
[1734391811089,8.12326699,216.23,216.12,6.0994]
[1734391811301,20.12549,216.26,216.12,6.0994]
[1734391811519,8.12326699,216.24,216.12,6.0994]
[1734391812296,8.12326699,216.25,216.12,6.0994]
[1734391812496,1.61,216.27,216.13,23.776884]
[1734391813404,9.73326699,216.27,216.13,23.776884]
[1734391815224,8.12326699,216.26,216.13,23.776884]
[1734391817602,9.73326699,216.27,216.13,23.776884]
[1734391818017,8.12326699,216.26,216.13,23.776884]
[1734391818615,8.12326699,216.25,216.12,6.0994]
[1734391820225,8.24875699,216.26,216.12,6.0994]
[1734391822426,8.12326699,216.23,216.12,6.0994]
[1734391823010,8.12326699,216.24,216.12,6.0994]
[1734391825302,8.12326699,216.22,216.12,6.0994]
[1734391829402,8.12326699,216.2,216.08,23.776884]
[1734391831215,8.12326699,216.21,216.08,23.776884]
[1734391832007,0.12549,216.25,216.08,24.47079099]
[1734391832203,8.12326699,216.23,216.08,24.47079099]
[1734391832407,8.12326699,216.24,216.11,20.0]
[1734391833633,8.12326699,216.25,216.12,23.776884]
[1734391834147,8.12326699,216.24,216.12,23.776884]
[1734391835914,8.24875699,216.26,216.12,23.776884]
[1734391836109,8.12326699,216.25,216.12,23.776884]
[1734391836324,8.12326699,216.24,216.12,23.776884]
[1734391837838,8.12326699,216.23,216.12,23.776884]
[1734391838021,8.12326699,216.24,216.12,23.776884]
[1734391839318,8.12326699,216.25,216.12,23.776884]
[1734391839519,1.61,216.27,216.17,20.0]
[1734391839824,9.73326699,216.27,216.17,20.0]
[1734391840242,1.61,216.27,216.17,20.0]
[1734391841245,13.12704175,216.3,216.17,20.0]
[1734391841246,8.12326699,216.29,216.17,20.0]
[1734391842540,0.12549,216.28,216.17,20.0]
[1734391844540,0.12549,216.28,216.14,8.2661]
[1734391844753,8.12326699,216.28,216.15,23.776884]
[1734391845322,8.12326699,216.27,216.15,23.776884]
[1734391845639,20.12549,216.29,216.15,23.776884]
[1734391845840,8.12326699,216.28,216.15,23.776884]
[1734391846035,8.12326699,216.27,216.15,23.776884]
[1734391846227,8.12326699,216.26,216.15,23.776884]
[1734391846429,8.12326699,216.27,216.15,23.776884]
[1734391848640,8.12326699,216.24,216.14,8.2661]
[1734391851054,0.12549,216.24,216.14,8.2661]
[1734391852052,0.12549,216.24,216.12,5.45611481]
[1734391852230,0.12549,216.24,216.13,23.776884]
[1734391852430,0.12549,216.24,216.12,23.776884]
[1734391852946,0.12549,216.24,216.1,23.776884]
[1734391853148,8.12326699,216.24,216.14,23.776884]
[1734391853541,8.12326699,216.24,216.13,20.0]
[1734391853739,8.24875699,216.23,216.13,20.0]
[1734391854342,20.32130134,216.27,216.13,20.0]